bitfinex/quotes_ETHUSD_20240817
["timestamp","ask_amount","ask_price","bid_price","bid_amount"]
[1723860909184,3.83468,2607.8,2607.4,7.32]
[1723860909385,3.83479,2607.7,2607.4,7.32]
[1723860909543,3.83479,2607.7,2607.1,3.0]
[1723860909743,3.83468,2607.8,2607.1,3.0]
[1723860909945,3.83468,2607.8,2607.2,3.83543]
[1723860910292,6.91064,2607.7,2607.1,3.0]
[1723860910504,3.0758,2607.7,2607.0,11.15574]
[1723860910710,3.0758,2607.7,2607.0,12.271343]
[1723860911119,3.0748412,2607.7,2607.1,3.83566]
[1723860911279,6.9096912,2607.7,2607.1,0.94516431]
[1723860911608,3.0748412,2607.7,2607.1,4.78082431]
[1723860911792,2.3748412,2607.7,2607.3,3.83529]
[1723860911965,2.3748412,2607.7,2607.4,0.383529]
[1723860912610,0.05341381,2607.6,2607.4,0.383529]
[1723860912909,0.05341381,2607.6,2607.4,4.218749]
[1723860913110,0.05341381,2607.6,2607.4,4.218679]
[1723860913417,0.05341381,2607.6,2607.5,8.0920479]
[1723860913703,8.36713,2608.6,2607.7,3.83473]
[1723860913704,7.66765,2608.4,2607.7,3.83473]
[1723860913918,3.83376,2608.4,2607.8,3.83464]
[1723860915059,7.66762,2608.4,2607.8,3.83464]
[1723860915396,2.3758,2608.5,2607.8,3.83464]
[1723860915613,2.3758,2608.5,2608.0,3.83434]
[1723860915968,2.3758,2608.5,2607.9,3.83447]
[1723860916165,0.05011112,2608.4,2607.9,3.83447]
[1723860916713,0.05011112,2608.4,2608.1,3.83418]
[1723860916899,0.05011112,2608.4,2608.0,3.83432]
[1723860917105,0.05011112,2608.4,2608.2,3.83397]
[1723860917397,6.20898,2608.8,2608.0,3.83429]
[1723860917601,3.83348,2608.6,2608.1,0.383429]
[1723860917906,6.20898,2608.8,2608.0,3.83426]
[1723860917907,0.05039415,2608.5,2608.2,3.83403]
[1723860918116,6.20898,2608.8,2608.3,0.383403]
[1723860918411,0.7,2608.9,2608.0,7.32]
[1723860918412,3.83356,2608.6,2608.0,7.32]
[1723860918598,6.20958,2608.4,2608.0,7.32]
[1723860918908,2.3758,2608.4,2608.0,11.15434]
[1723860919304,6.20936,2608.6,2608.0,11.15434]
[1723860919486,2.3758,2608.6,2608.1,3.83419]
[1723860919684,2.3758,2608.6,2608.2,3.83397]
[1723860920270,0.05040129,2608.5,2608.2,3.83397]
[1723860921221,0.05040129,2608.5,2608.1,7.66831]
[1723860921376,0.05040129,2608.5,2608.1,4.949539]
[1723860922905,0.05040129,2608.5,2608.1,3.83412]
[1723860923314,0.05040129,2608.5,2608.0,7.32]
[1723860925415,0.05040129,2608.5,2608.0,11.15434]
[1723860925735,0.05040129,2608.5,2608.1,3.8342]
[1723860927311,0.05040129,2608.5,2608.3,3.83387]
[1723860927478,2.4051,2608.8,2608.3,3.83387]
[1723860927479,2.4051,2608.8,2608.4,0.383387]
[1723860927681,0.05039766,2608.7,2608.4,0.383387]
[1723860927977,2.4051,2608.8,2608.4,0.383387]
[1723860928207,0.0502908,2608.6,2608.4,0.383387]
[1723860928832,0.0502908,2608.6,2608.4,4.217107]
[1723860928985,0.0502908,2608.6,2608.5,1.1884787]
[1723860929186,0.0502908,2608.6,2608.5,5.0220987]
[1723860929484,0.0502908,2608.6,2608.2,3.83405]
[1723860929684,2.4553908,2608.6,2608.1,7.66824]
[1723860930293,2.4553908,2608.6,2608.0,7.32]
[1723860930494,6.2889508,2608.6,2607.9,3.83441]
[1723860930805,6.2889508,2608.6,2608.0,3.0]
[1723860930982,0.0504595,2608.5,2608.0,3.0]
[1723860932332,0.0504595,2608.5,2608.1,3.83419]
[1723860933385,0.0504595,2608.5,2608.0,3.683441]
[1723860935045,0.0504595,2608.5,2608.1,3.83413]
[1723860935201,0.0504595,2608.5,2608.0,3.0]
[1723860935565,0.0504595,2608.5,2607.9,3.83436]
[1723860936130,3.8841195,2608.5,2607.7,6.8347]
[1723860936347,2.4051,2608.4,2607.9,3.83449]
[1723860936867,0.04862402,2608.3,2607.9,3.83449]
[1723860937715,0.04862402,2608.3,2607.9,7.66889]
[1723860937919,0.04862402,2608.3,2607.9,3.8344]
[1723860938687,0.04862402,2608.3,2607.9,7.66882]
[1723860938894,0.04862402,2608.3,2607.9,3.8344]
[1723860939933,0.04862402,2608.3,2608.0,3.83433]
[1723860941106,0.04862402,2608.3,2608.1,3.83419]
[1723860941543,0.04862402,2608.3,2607.9,3.83438]
[1723860942101,0.04862402,2608.3,2608.0,3.83434]
[1723860942454,0.04862402,2608.3,2608.1,3.8342]
[1723860944124,0.04862402,2608.3,2607.9,8.07133631]
[1723860944808,0.04862402,2608.3,2608.0,3.83427]
[1723860945287,0.04862402,2608.3,2608.1,3.8342]
[1723860946272,0.04862402,2608.3,2608.2,7.66812]
[1723860946673,0.0502908,2608.6,2608.5,3.83362]
[1723860947086,0.09891691,2608.6,2608.5,3.83362]
[1723860949407,0.09891691,2608.6,2608.5,4.600364]
[1723860949897,0.09891691,2608.6,2608.5,3.83362]
[1723860950204,0.09891691,2608.6,2608.4,3.83375]
[1723860950386,2.36981691,2608.6,2608.4,3.83375]
[1723860952867,2.36981691,2608.6,2608.2,3.83395]
[1723860953083,2.36981691,2608.6,2608.0,3.83421]
[1723860953280,2.36981691,2608.6,2608.2,3.83405]
[1723860955303,2.36981691,2608.6,2608.2,3.83397]
[1723860956271,0.09891691,2608.6,2608.2,3.83397]
[1723860956603,0.09891691,2608.6,2608.3,3.83383]
[1723860956905,0.09891691,2608.6,2608.1,2.3359]
[1723860958007,0.09891691,2608.6,2608.2,3.83403]
[1723860958908,0.09891691,2608.6,2608.2,7.66801]
[1723860959214,0.09891691,2608.6,2608.3,3.83383]
[1723860959571,0.09891691,2608.6,2608.5,3.83362]
[1723860960905,0.09891691,2608.6,2608.5,10.00314]
[1723860961105,0.0502908,2608.6,2608.5,10.00314]
[1723860961424,0.0502908,2608.6,2608.5,10.42167716]
[1723860961646,0.0502908,2608.6,2608.5,16.3902977]
[1723860961939,0.0502908,2608.6,2608.5,18.39294825]
[1723860962083,0.0502908,2608.6,2608.5,21.79135673]
[1723860962290,0.0502908,2608.6,2608.5,21.39265123]
[1723860962485,2.2709,2609.5,2609.1,3.83273]
[1723860962921,0.04262563,2609.4,2609.1,3.83273]
[1723860963242,2.2709,2609.5,2609.1,3.83273]
[1723860963644,0.04233081,2609.4,2608.9,3.8329]
[1723860963995,0.04233081,2609.4,2608.9,7.66585]
[1723860964299,0.04233081,2609.4,2609.0,3.83287]
[1723860965399,0.04233081,2609.4,2609.1,3.83273]
[1723860969217,0.04233081,2609.4,2608.9,7.66584]
[1723860970154,0.04233081,2609.4,2609.0,3.83287]
[1723860975292,0.04233081,2609.4,2609.1,3.83265]
[1723860975594,0.04233081,2609.4,2609.1,7.66531]
[1723860975739,2.3661,2609.1,2608.6,7.32]
[1723860975939,1.323,2608.9,2608.6,7.32]
[1723860976153,0.04104038,2608.8,2608.5,3.83353]
[1723860976338,1.323,2608.7,2608.3,6.14752]
[1723860976536,1.323,2608.7,2608.3,7.494272]
[1723860976744,0.04093325,2608.6,2608.4,3.83373]
[1723860977152,0.04093325,2608.6,2608.3,11.328092]
[1723860977441,0.04093325,2608.6,2608.4,3.83373]
[1723860977848,2.40703325,2608.6,2608.4,3.83373]
[1723860978282,2.40703325,2608.6,2608.2,11.15397]
[1723860978474,2.40703325,2608.6,2608.3,3.0]
[1723860979472,2.40703325,2608.6,2608.2,7.32]
[1723860980270,7.24785457,2608.6,2607.9,11.15437]
[1723860980980,7.24785457,2608.6,2608.0,3.83425]
[1723860982301,7.24785457,2608.6,2607.9,11.15437]
[1723860983272,2.3661,2608.4,2607.9,11.15437]
[1723860983486,2.3661,2608.4,2607.9,7.32]
[1723860983487,6.89986,2608.4,2607.9,7.32]
[1723860983677,2.3661,2608.2,2607.9,7.32]
[1723860983878,0.04085012,2608.3,2607.3,11.15529]
[1723860983879,2.3661,2607.9,2607.3,11.15529]
[1723860984275,0.04052381,2607.8,2607.3,11.15529]
[1723860985267,0.04052381,2607.8,2607.3,12.67443347]
[1723860986968,2.3944,2607.6,2607.3,7.32]
[1723860987203,0.04032084,2607.5,2607.3,7.32]
[1723860987370,0.04032084,2607.5,2607.1,3.83558]
[1723860988884,0.04032084,2607.5,2607.1,7.67117]
[1723860989079,0.04032084,2607.5,2607.1,3.83558]
[1723860989637,0.04032084,2607.5,2607.1,7.67117]
[1723860989796,0.04032084,2607.5,2607.1,3.83558]
[1723860989996,0.04032084,2607.5,2607.1,7.67117]
[1723860991134,0.04032084,2607.5,2607.2,3.8355]
[1723860991293,0.04032084,2607.5,2607.2,4.902608]
[1723860992019,0.04032084,2607.5,2607.2,3.8355]
[1723860995528,0.04032084,2607.5,2607.2,3.83545]
[1723860999407,2.3944,2607.6,2607.2,3.83545]
[1723860999620,0.0372055,2607.4,2607.2,3.83545]
[1723860999804,2.3944,2607.6,2607.2,3.83545]
[1723861000201,0.03727079,2607.5,2607.2,3.83545]
[1723861001326,0.03727079,2607.5,2607.1,3.83567]
[1723861001719,0.03727079,2607.5,2607.0,6.83573]
[1723861001720,0.03727079,2607.5,2607.0,3.83573]
[1723861001901,1.36127079,2607.5,2606.9,11.15595]
[1723861002104,2.3944,2607.4,2606.9,11.15595]
[1723861002301,0.03734289,2607.3,2607.0,3.83581]
[1723861004647,0.03734289,2607.3,2607.0,3.83573]
[1723861006873,2.3875,2607.2,2606.8,3.83602]
[1723861007295,0.03718939,2607.1,2606.8,3.83602]
[1723861010645,2.3875,2607.0,2606.6,14.15634]
[1723861010863,2.3875,2607.0,2606.2,7.32]
[1723861010864,1.324,2606.9,2606.2,7.32]
[1723861011067,2.3875,2606.8,2606.4,3.83661]
[1723861011498,0.03686603,2606.7,2606.4,3.83661]
[1723861011700,0.03686603,2606.7,2606.2,11.15686]
[1723861012005,2.3875,2606.8,2606.2,11.15686]
[1723861012210,0.03686603,2606.7,2606.2,11.15686]
[1723861012419,0.03686603,2606.7,2606.4,3.83668]
[1723861012800,2.3875,2606.8,2606.4,3.83668]
[1723861013109,0.03686603,2606.7,2606.6,8.99682]
[1723861013818,6.22289,2607.3,2606.7,3.83616]
[1723861014122,2.3875,2607.3,2606.8,3.83612]
[1723861014398,0.03703888,2607.2,2606.8,7.67224]
[1723861014613,2.3875,2607.3,2606.9,3.83596]
[1723861015079,0.0370101,2607.2,2606.8,4.41680151]
[1723861015412,2.3875,2607.3,2606.8,4.41680151]
[1723861015613,0.0370101,2607.2,2606.8,4.41680151]
[1723861015767,0.0370101,2607.2,2606.8,8.25283151]
[1723861015986,2.3875,2607.3,2606.8,4.41671151]
[1723861016238,0.0370101,2607.2,2606.8,4.41671151]
[1723861018805,0.03681416,2606.9,2606.8,3.83603]
[1723861019118,0.03681416,2606.9,2606.6,8.7690378]
[1723861020236,0.03681416,2606.9,2606.6,3.83628]
[1723861020598,0.03681416,2606.9,2606.6,7.67261]
[1723861020816,0.03681416,2606.9,2606.6,3.83628]
[1723861021127,0.03681416,2606.9,2606.5,6.83652]
[1723861021331,3.7115,2606.8,2606.2,11.15687]
[1723861021638,1.324,2606.6,2606.2,3.83687]
[1723861021849,2.3875,2606.5,2606.2,3.83687]
[1723861022337,0.03663731,2606.4,2606.2,3.83687]
[1723861022538,0.03663731,2606.4,2606.3,3.83685]
[1723861023440,0.03663731,2606.4,2606.3,7.6737]
[1723861023890,2.3875,2606.8,2606.5,3.83647]
[1723861024516,2.3875,2606.8,2606.5,7.67294]
[1723861024720,2.3875,2607.0,2606.7,3.83626]
[1723861024920,2.3875,2607.0,2606.7,3.83618]
[1723861025100,2.3875,2607.0,2606.5,4.603764]
[1723861025101,2.3875,2607.0,2606.5,8.440194]
[1723861025308,2.3875,2607.0,2606.6,3.83641]
[1723861025309,3.7115,2607.0,2606.6,3.83641]
[1723861025497,3.7115,2607.0,2606.5,7.6729]
[1723861025697,3.7115,2607.0,2606.5,3.83643]
[1723861025698,0.03673374,2606.9,2606.5,3.83643]
[1723861025897,2.3875,2606.8,2606.4,3.83663]
[1723861026135,3.7115,2606.8,2606.3,3.83675]
[1723861026301,0.03664294,2606.7,2606.3,3.83675]
[1723861026496,0.03664294,2606.7,2606.3,4.462435]
[1723861026819,3.7115,2606.8,2606.3,4.462435]
[1723861026820,0.0365776,2606.6,2606.3,4.462435]
[1723861027013,0.0365776,2606.6,2606.4,3.83668]
[1723861027226,3.7115,2606.8,2606.4,3.83668]
[1723861027395,0.03651226,2606.5,2606.4,3.83668]
[1723861027595,3.7115,2606.8,2606.4,3.83668]
[1723861027797,0.03664294,2606.7,2606.4,3.83668]
[1723861027997,3.7115,2606.8,2606.5,3.83654]
[1723861028196,0.03664294,2606.7,2606.5,3.83647]
[1723861028441,2.3875,2606.8,2606.5,7.67295]
[1723861028641,0.0365776,2606.6,2606.5,3.83647]
[1723861028813,2.3875,2606.8,2606.5,3.83647]
[1723861029015,0.03664294,2606.7,2606.5,4.71098585]
[1723861029216,2.3852,2607.1,2606.6,3.83641]
[1723861029532,0.03677944,2607.0,2606.7,3.83613]
[1723861029894,0.03677944,2607.0,2606.6,3.83641]
[1723861030814,0.03677944,2607.0,2606.6,3.83633]
[1723861033308,2.3852,2606.9,2606.6,3.83633]
[1723861033622,0.03664879,2606.8,2606.6,3.83633]
[1723861034311,0.03664879,2606.8,2606.4,3.83657]
[1723861035236,0.03664879,2606.8,2606.5,3.83648]
[1723861036018,0.03664879,2606.8,2606.6,3.83639]
[1723861039625,0.03664879,2606.8,2606.7,11.37582]
[1723861039800,2.3852,2607.9,2606.8,2.3793]
[1723861040010,0.036038,2607.8,2607.5,3.83499]
[1723861040739,3.7092,2608.2,2607.6,3.83494]
[1723861040938,4.5337,2608.5,2607.9,3.83437]
[1723861040939,1.324,2608.4,2607.9,3.83437]
[1723861042012,1.324,2608.4,2608.0,3.83434]
[1723861042225,1.324,2608.4,2607.9,3.83437]
[1723861042740,1.324,2608.2,2607.9,3.83437]
[1723861043947,0.44092,2608.4,2607.9,3.83437]
[1723861044903,2.3852,2608.1,2607.5,3.83499]
[1723861045649,3.83436,2608.0,2607.4,7.32]
[1723861045866,1.07537,2608.0,2607.4,7.32]
[1723861046824,1.07537,2608.0,2607.5,3.83507]
[1723861047018,2.3852,2608.1,2607.5,3.83507]
[1723861047218,2.3852,2608.1,2607.6,3.83492]
[1723861047430,2.3852,2608.1,2607.5,3.83499]
[1723861047965,6.21944,2608.1,2607.5,3.83499]
[1723861048245,7.678214,2608.1,2607.5,3.83499]
[1723861049456,3.1524,2607.9,2607.1,23.32561]
[1723861049757,2.4524,2607.8,2607.1,11.15561]
[1723861050521,6.2871,2607.8,2607.2,3.83544]
[1723861050869,3.83481,2607.7,2607.1,11.15561]
[1723861051116,0.7,2607.6,2606.9,3.83588]
[1723861051325,6.28752,2607.5,2606.9,3.83588]
[1723861052015,2.4524,2607.5,2606.7,7.67234]
[1723861052217,2.4524,2607.5,2606.7,3.83614]
[1723861052218,3.83539,2607.3,2606.7,3.83614]
[1723861052506,0.77943847,2607.4,2606.8,3.83609]
[1723861053072,4.61475847,2607.4,2606.8,3.83609]
[1723861053316,2.4524,2607.2,2606.7,7.67232]
[1723861054023,6.28796,2607.2,2606.6,7.32]
[1723861054168,0.69946759,2607.1,2606.6,7.32]
[1723861054969,0.69946759,2607.1,2606.6,11.1564]
[1723861055788,0.69946759,2607.1,2606.6,3.8364]
[1723861055985,0.7,2607.0,2606.3,7.67351]
[1723861056197,2.4524,2606.9,2606.3,3.83673]
[1723861056397,6.28839,2606.9,2606.3,3.83673]
[1723861056918,2.4524,2606.7,2606.2,7.32]
[1723861057106,2.4524,2606.7,2606.1,3.83706]
[1723861057337,6.28869,2606.7,2606.1,7.67413]
[1723861057613,2.4524,2606.7,2606.1,7.67413]
[1723861058320,2.4524,2606.7,2606.2,3.837]
[1723861063091,2.4524,2606.7,2606.2,4.22062]
[1723861067434,2.4524,2606.7,2606.2,3.83692]
[1723861071143,2.4524,2606.7,2606.2,7.67384]
[1723861071310,2.4524,2606.7,2606.2,3.83692]
[1723861074135,6.28869,2606.7,2606.2,3.83692]
[1723861074334,2.4524,2606.7,2606.2,3.83692]
[1723861076821,2.4524,2606.7,2606.2,0.767411]
[1723861077017,2.4524,2606.7,2606.1,2.3053]
[1723861077235,2.4524,2606.7,2606.4,3.83662]
[1723861077437,2.4524,2606.7,2606.3,3.83683]
[1723861078454,2.4524,2606.7,2605.9,2.3053]
[1723861078455,1.325,2606.6,2605.9,2.3053]
[1723861078640,1.325,2606.6,2605.9,6.553555]
[1723861080098,1.325,2606.6,2606.2,3.83698]
[1723861081804,2.2986,2606.5,2606.2,3.83698]
[1723861082397,2.2986,2606.5,2606.2,3.83691]
[1723861085701,3.6236,2606.7,2606.2,4.604322]
[1723861087495,7.45987,2606.7,2606.2,3.83691]
[1723861088520,7.45987,2606.7,2606.0,3.8372]
[1723861088521,5.16127,2606.7,2606.0,3.83716]
[1723861088722,2.4187,2606.6,2606.0,3.83716]
[1723861089525,2.4187,2606.6,2606.1,3.83706]
[1723861090689,1.325,2606.3,2605.5,7.32]
[1723861091039,1.325,2606.1,2605.6,3.83776]
[1723861091244,1.325,2606.1,2605.7,3.83771]
[1723861092623,2.3415,2606.0,2605.7,3.83771]
[1723861094211,2.3415,2606.0,2605.8,3.8375]
[1723861094436,2.3415,2606.5,2606.0,3.8372]
[1723861094746,2.3415,2606.5,2606.1,0.38372]
[1723861094954,2.3415,2606.5,2606.0,3.8372]
[1723861095560,2.3415,2606.5,2605.9,3.83744]
[1723861095760,1.325,2606.4,2605.9,3.83744]
[1723861095962,6.1784,2606.3,2605.7,3.83764]
[1723861096528,2.3415,2606.3,2605.8,3.8375]
[1723861096862,2.3415,2606.3,2605.9,3.83743]
[1723861097426,2.3415,2606.5,2606.0,3.83727]
[1723861097630,2.3415,2606.5,2606.1,3.83713]
[1723861098031,3.83605,2606.9,2606.4,3.8367]
[1723861098032,0.7,2606.9,2606.4,3.8367]
[1723861098229,2.3415,2606.8,2606.4,3.8367]
[1723861100586,2.3415,2606.8,2606.3,3.83681]
[1723861103375,3.412857,2606.8,2606.2,3.83686]
[1723861103777,7.248997,2606.8,2606.2,7.67378]
[1723861103945,7.248997,2606.8,2606.2,3.83686]
[1723861104750,11.1926387,2606.7,2606.1,3.83713]
[1723861105054,2.3415,2606.5,2606.0,11.15718]
[1723861105265,2.3415,2606.4,2606.0,7.32]
[1723861106153,2.3415,2606.4,2605.8,3.83751]
[1723861106353,2.3415,2606.4,2606.0,3.83728]
[1723861110569,2.3415,2606.4,2605.8,3.83745]
[1723861110799,2.3415,2606.4,2605.9,3.83743]
[1723861111698,0.7,2606.3,2605.7,7.32]
[1723861111901,2.3296,2606.2,2605.7,11.15772]
[1723861112196,2.3296,2606.2,2605.7,3.83772]
[1723861114367,2.3296,2606.2,2605.8,3.83755]
[1723861117499,2.3296,2606.2,2605.8,7.67506]
[1723861117807,2.3296,2606.2,2605.8,5.219546]
[1723861118226,2.3296,2606.2,2605.8,3.83751]
[1723861121016,6.1666,2606.2,2605.6,3.8378]
[1723861121785,6.1666,2606.2,2605.7,3.83773]
[1723861122098,6.85326,2606.2,2605.7,3.83773]
[1723861122919,6.85326,2606.2,2605.6,3.8378]
[1723861122920,2.3296,2606.0,2605.6,3.8378]
[1723861132999,1.326,2605.7,2605.2,6.14588]
[1723861133200,3.5867,2605.7,2605.3,3.83819]
[1723861136724,3.5867,2605.7,2605.3,7.67643]
[1723861137351,0.7,2606.0,2605.5,3.83802]
[1723861137582,3.83695,2606.3,2605.8,3.83748]
[1723861137583,2.2607,2606.2,2605.8,3.83748]
[1723861137863,2.2607,2606.2,2605.9,4.39843431]
[1723861138160,1.326,2606.5,2606.1,7.67417]
[1723861138347,1.326,2606.5,2606.2,3.83689]
[1723861139978,2.2607,2606.6,2606.2,3.83689]
[1723861140861,2.2607,2606.6,2606.1,3.83711]
[1723861141249,6.09717,2606.6,2606.0,3.83727]
[1723861141422,4.51629,2606.5,2605.9,3.83733]
[1723861141625,2.2607,2606.3,2605.9,3.83733]
[1723861142324,2.2607,2606.2,2605.7,3.83771]
[1723861142634,6.09771,2606.2,2605.7,3.83771]
[1723861142848,6.098,2606.0,2605.5,3.83802]
[1723861143634,6.098,2606.0,2605.3,3.83818]
[1723861143839,0.6777771,2605.9,2605.4,3.8381]
[1723861144643,0.67681778,2605.9,2605.4,3.8381]
[1723861145258,2.2607,2605.8,2605.3,7.67642]
[1723861145471,3.63818178,2605.8,2605.2,11.15837]
[1723861145625,6.79836,2605.8,2605.2,3.83837]
[1723861147038,2.9607,2605.8,2605.3,3.8383]
[1723861147278,2.9607,2605.8,2605.3,4.64827556]
[1723861147843,2.2607,2605.8,2605.3,0.80997556]
[1723861148085,6.28903,2606.1,2605.6,3.83786]
[1723861148280,6.28903,2606.1,2605.6,0.383786]
[1723861148436,6.28903,2606.1,2605.4,3.83805]
[1723861148911,6.28903,2606.1,2605.5,3.83794]
[1723861149746,6.28903,2606.1,2605.4,3.83805]
[1723861149747,6.28903,2606.1,2605.6,3.83786]
[1723861149948,10.12627,2606.1,2605.4,7.6761]
[1723861150265,10.825173,2606.1,2605.4,7.6761]
[1723861150460,6.987933,2606.1,2605.5,3.83801]
[1723861150644,6.987933,2606.1,2605.6,3.83788]
[1723861151085,10.825163,2606.1,2605.4,7.67609]
[1723861151231,0.7687933,2606.0,2605.4,7.67609]
[1723861151437,2.4864,2605.9,2605.4,7.67609]
[1723861151638,2.4864,2605.9,2605.5,3.83803]
[1723861153074,2.4864,2605.9,2605.4,3.83804]
[1723861153075,7.82818154,2605.9,2605.3,3.83832]
[1723861153392,7.02392,2605.9,2605.3,3.83832]
[1723861153764,7.02392,2605.9,2605.3,7.67657]
[1723861154883,7.02392,2605.9,2605.3,3.83825]
[1723861155098,7.02392,2605.9,2605.3,7.67649]
[1723861155292,7.02392,2605.9,2605.3,7.67648]
[1723861155444,10.86146,2605.9,2605.3,3.83824]
[1723861155647,11.41501327,2605.9,2605.3,3.83824]
[1723861156074,7.57747327,2605.9,2605.3,3.83824]
[1723861156689,7.57747327,2605.9,2605.3,7.67648]
[1723861156988,2.4864,2605.9,2605.5,3.83803]
[1723861157197,2.4864,2605.9,2605.6,3.83777]
[1723861157342,2.4864,2605.9,2605.6,4.83978]
[1723861158387,2.4864,2605.9,2605.5,3.83803]
[1723861162287,6.32388,2605.9,2605.3,3.83821]
[1723861162486,2.4864,2605.8,2605.3,3.83821]
[1723861163977,1.326,2605.7,2605.3,3.83821]
[1723861164318,1.326,2605.7,2605.1,6.83857]
[1723861164319,2.4864,2605.6,2605.1,6.83857]
[1723861164500,1.326,2605.5,2605.1,6.83857]
[1723861165307,1.326,2605.5,2605.0,2.00316576]
[1723861165523,1.326,2605.1,2604.8,0.80338414]
[1723861165664,1.326,2605.1,2604.7,3.83911]
[1723861166320,2.4864,2605.2,2604.7,3.83911]
[1723861166901,1.326,2605.1,2604.7,3.83911]
[1723861167573,1.326,2605.1,2604.6,7.32]
[1723861167962,7.02495,2605.2,2604.6,11.15935]
[1723861168418,4.53855,2605.2,2604.6,11.15935]
[1723861168566,2.3475,2605.1,2604.6,11.15935]
[1723861168766,2.3475,2605.0,2604.5,3.83937]
[1723861169021,3.036105,2605.0,2604.5,3.83937]
[1723861169166,2.3475,2605.0,2604.5,3.83937]
[1723861170229,2.3475,2605.0,2604.6,3.83931]
[1723861171010,2.3475,2605.0,2604.4,3.83955]
[1723861171011,2.3475,2604.9,2604.4,3.83955]
[1723861171212,0.7,2604.7,2604.3,7.32]
[1723861171426,2.801409,2604.6,2604.3,7.32]
[1723861171581,6.640769,2604.6,2604.1,3.9689377]
[1723861171906,2.3475,2604.4,2604.1,0.1289277]
[1723861172928,4.53991,2604.3,2604.1,0.1289277]
[1723861173209,6.18745,2604.2,2604.1,0.1289277]
[1723861173817,2.3475,2604.2,2604.1,0.1289277]
[1723861174869,2.3475,2604.5,2604.1,0.1289277]
[1723861175069,3.0815829,2604.5,2604.1,0.1289277]
[1723861176416,3.0815829,2604.5,2604.1,3.9689677]
[1723861176586,2.3475,2604.5,2604.1,3.9689677]
[1723861178073,2.3475,2604.5,2604.1,7.8090077]
[1723861178495,2.3475,2604.5,2604.1,3.9689677]
[1723861179015,2.3475,2604.5,2604.1,3.9189677]
[1723861179817,2.3475,2604.5,2604.2,3.83993]
[1723861180005,2.65225,2604.5,2604.1,3.9189677]
[1723861182404,2.65225,2604.5,2604.1,7.7589677]
[1723861182611,2.3475,2604.5,2604.1,7.7589677]
[1723861182838,3.0475,2604.7,2604.1,3.9189977]
[1723861184142,3.0475,2604.7,2604.3,3.8397]
[1723861185194,3.0475,2604.7,2604.1,7.7589777]
[1723861185503,0.688658,2604.6,2604.1,7.7589777]
[1723861186137,0.688658,2604.6,2604.2,3.83991]
[1723861186439,3.0475,2604.7,2604.2,3.83991]
[1723861188070,3.0475,2604.7,2604.4,3.83964]
[1723861188216,3.0475,2604.7,2604.3,3.83976]
[1723861188416,3.0475,2604.7,2604.3,3.83971]
[1723861188645,3.0475,2604.7,2604.4,3.83964]
[1723861190314,3.83877,2605.0,2604.4,3.83956]
[1723861190517,3.83877,2605.0,2604.7,3.83912]
[1723861190518,2.3922,2605.0,2604.7,3.83912]
[1723861191920,2.3922,2605.0,2604.6,3.83934]
[1723861193700,2.3922,2605.2,2604.6,0.383934]
[1723861193985,2.3922,2605.2,2604.8,3.83898]
[1723861194287,2.3922,2605.2,2604.7,3.83909]
[1723861194462,2.3922,2605.2,2604.9,3.83883]
[1723861195192,2.3922,2605.2,2604.7,3.83907]
[1723861197506,2.3922,2605.2,2604.7,7.6782]
[1723861197812,2.3922,2605.2,2604.7,3.83907]
[1723861198163,2.3922,2605.2,2604.7,7.6782]
[1723861198364,2.3922,2605.2,2604.7,3.83907]
[1723861198577,4.53818,2605.4,2605.0,3.83867]
[1723861198578,2.3922,2605.4,2605.0,3.83867]
[1723861198801,2.3922,2605.4,2605.0,3.83869]
[1723861201702,2.3922,2605.4,2604.7,3.83911]
[1723861201703,6.23062,2605.3,2604.7,3.83911]
[1723861202007,4.5387,2605.1,2604.5,3.8394]
[1723861202212,4.5387,2605.1,2604.5,7.67882]
[1723861202510,2.3922,2605.0,2604.5,3.8394]
[1723861203010,6.231,2605.0,2604.5,7.67882]
[1723861203165,2.3922,2605.0,2604.5,3.8394]
[1723861203500,2.3922,2605.0,2604.6,3.83935]
[1723861203890,2.3922,2605.0,2604.5,3.8394]
[1723861204077,2.3922,2605.2,2604.8,3.83903]
[1723861204304,2.3922,2605.2,2604.5,3.8394]
[1723861204496,0.23922,2605.1,2604.5,3.8394]
[1723861204707,0.23922,2605.1,2604.6,3.83935]
[1723861204912,2.3922,2605.0,2604.6,3.83935]
[1723861205098,2.3922,2605.0,2604.4,3.0]
[1723861205294,0.647005,2604.9,2604.5,7.67889]
[1723861205609,0.647005,2604.9,2604.5,3.83941]
[1723861206427,2.3922,2605.0,2604.5,3.83941]
[1723861207240,2.3922,2605.0,2604.7,3.8392]
[1723861207449,2.4367,2605.3,2604.7,3.8392]
[1723861207738,3.134195,2605.3,2604.7,3.8392]
[1723861207883,3.134195,2605.3,2604.9,3.83884]
[1723861208439,3.134195,2605.3,2604.8,3.83906]
[1723861209497,6.972525,2605.3,2604.8,3.83906]
[1723861209731,1.1510775,2605.2,2604.8,3.83906]
[1723861211525,1.1510775,2605.2,2604.9,3.83889]
[1723861211729,2.4367,2605.3,2604.9,3.83889]
[1723861212417,2.4367,2605.3,2604.8,3.83905]
[1723861212614,6.27504,2605.3,2604.8,3.83905]
[1723861212932,1.081329,2605.2,2604.8,3.83905]
[1723861213391,2.4367,2605.1,2604.5,3.8394]
[1723861213596,6.27538,2605.1,2604.6,3.83932]
[1723861216631,2.4367,2605.0,2604.6,3.83932]
[1723861217203,2.4367,2605.0,2604.5,3.8394]
[1723861217204,2.4367,2605.0,2604.5,7.67882]
[1723861217403,3.064238,2605.0,2604.5,7.67882]
[1723861217622,3.064238,2605.0,2604.6,3.83927]
[1723861218417,2.4367,2605.0,2604.6,3.83927]